bitfinex/quotes_BTCUSD_20240611
["timestamp","ask_amount","ask_price","bid_price","bid_amount"]
[1718089021255,0.1,67462.0,67423.0,0.1]
[1718089021256,0.04996112,67443.0,67429.0,0.2889]
[1718089021485,0.04996112,67443.0,67442.0,0.14431993]
[1718089021729,0.07215996,67458.0,67442.0,0.14431993]
[1718089021990,0.07215996,67443.0,67442.0,0.14431993]
[1718089022427,0.07215996,67450.0,67442.0,0.14431993]
[1718089022642,0.07310596,67449.0,67443.0,0.14431993]
[1718089022852,0.07310596,67449.0,67444.0,0.01443199]
[1718089022853,0.000946,67449.0,67444.0,0.01443199]
[1718089023085,0.000946,67449.0,67445.0,0.14431993]
[1718089023300,0.000946,67449.0,67448.0,0.42851993]
[1718089023517,0.000946,67449.0,67448.0,0.68871993]
[1718089023737,0.000946,67449.0,67448.0,0.78871993]
[1718089023955,0.000946,67449.0,67448.0,0.90635512]
[1718089024647,0.04962784,67462.0,67454.0,0.1]
[1718089024870,0.07215996,67479.0,67464.0,0.2412]
[1718089025092,0.61482332,67492.0,67476.0,0.14431993]
[1718089025315,0.46106394,67481.0,67477.0,0.11443199]
[1718089025536,0.07215996,67493.0,67480.0,0.14431993]
[1718089025793,0.4609968,67492.0,67481.0,0.24431993]
[1718089026010,0.43295979,67503.0,67484.0,0.14431993]
[1718089026011,0.17215996,67500.0,67484.0,0.14431993]
[1718089026232,0.17215996,67500.0,67477.0,0.11443199]
[1718089026233,0.46097072,67499.0,67486.0,0.14431993]
[1718089026450,0.46097072,67498.0,67489.0,0.14431993]
[1718089026688,0.07215996,67493.0,67490.0,0.24431993]
[1718089026919,0.07215996,67493.0,67491.0,0.14431993]
[1718089027134,0.07215996,67500.0,67490.0,0.1]
[1718089027135,0.07215996,67500.0,67492.0,0.32510512]
[1718089027339,0.1,67513.0,67497.0,0.14431993]
[1718089027553,0.07215996,67500.0,67498.0,0.1]
[1718089027775,0.07215996,67500.0,67499.0,0.14431993]
[1718089027994,0.46093002,67500.0,67499.0,0.24431993]
[1718089028294,0.42582011,67500.0,67499.0,0.24431993]
[1718089028498,0.10946001,67517.0,67499.0,0.24431993]
[1718089028499,0.00946001,67517.0,67501.0,0.5267]
[1718089028709,0.00946001,67517.0,67516.0,0.51751993]
[1718089028924,0.00946001,67517.0,67516.0,1.04421993]
[1718089029152,0.00946001,67524.0,67516.0,1.66721993]
[1718089029360,0.0129246,67540.0,67516.0,1.66721993]
[1718089029361,0.43295979,67536.0,67524.0,0.1]
[1718089029633,0.0129246,67540.0,67535.0,0.14431993]
[1718089029855,0.0129246,67540.0,67529.0,0.3732]
[1718089029856,0.0129246,67540.0,67539.0,0.14431993]
[1718089030079,0.0129246,67540.0,67539.0,0.67101993]
[1718089030305,0.10946001,67560.0,67539.0,0.77101993]
[1718089030524,0.00946001,67560.0,67551.0,0.14431993]
[1718089030753,0.00946001,67560.0,67549.0,0.3732]
[1718089030754,0.00946001,67560.0,67559.0,0.14431993]
[1718089030970,0.07215996,67593.0,67565.0,0.1]
[1718089030971,0.13135796,67593.0,67565.0,0.1]
[1718089031205,0.07215996,67593.0,67570.0,0.3732]
[1718089031436,0.07215996,67593.0,67571.0,0.10443487]
[1718089031672,0.07215996,67593.0,67578.0,0.14431993]
[1718089031673,0.07215996,67585.0,67578.0,0.14431993]
[1718089031914,0.07215996,67585.0,67572.0,0.02553922]
[1718089031915,0.1,67582.0,67579.0,0.24431993]
[1718089032136,0.1,67582.0,67572.0,0.02553922]
[1718089032137,0.07215996,67585.0,67581.0,0.40861993]
[1718089032345,0.07215996,67593.0,67584.0,0.14431993]
[1718089032563,0.07215996,67593.0,67585.0,0.1]
[1718089032783,0.07215996,67586.0,67585.0,0.1]
[1718089033004,0.07215996,67593.0,67585.0,0.1]
[1718089033228,0.07215996,67586.0,67585.0,0.1]
[1718089033731,0.07215996,67586.0,67582.0,0.1]
[1718089033958,0.07215996,67586.0,67579.0,0.04911827]
[1718089034170,0.07215996,67586.0,67583.0,0.14431993]
[1718089034389,0.07215996,67600.0,67586.0,0.2569]
[1718089034614,0.43295979,67606.0,67595.0,0.14431993]
[1718089034850,0.0147067,67613.0,67587.0,0.1059163]
[1718089034851,0.1,67597.0,67596.0,0.14431993]
[1718089035073,0.07215996,67599.0,67587.0,0.1]
[1718089035074,0.1,67598.0,67587.0,0.1]
[1718089035291,0.1,67598.0,67592.0,0.04926284]
[1718089035527,0.1,67598.0,67587.0,0.1]
[1718089035758,0.07215996,67588.0,67587.0,0.01194665]
[1718089036011,0.07215996,67588.0,67587.0,0.14431993]
[1718089037488,0.1,67581.0,67574.0,0.04971539]
[1718089037700,0.07215996,67575.0,67574.0,0.04971539]
[1718089037914,0.07215996,67588.0,67574.0,0.04971539]
[1718089037915,0.07215996,67588.0,67575.0,0.03411546]
[1718089038123,0.07215996,67591.0,67575.0,0.03411546]
[1718089038328,0.07215996,67584.0,67575.0,0.03411546]
[1718089038544,0.07215996,67576.0,67572.0,0.07520031]
[1718089038970,0.07215996,67591.0,67575.0,0.14431993]
[1718089039193,0.07215996,67591.0,67585.0,0.14431993]
[1718089039407,0.07215996,67599.0,67590.0,0.14431993]
[1718089039621,0.07215996,67599.0,67592.0,0.14431993]
[1718089039842,0.07215996,67599.0,67593.0,0.12443199]
[1718089040036,0.07215996,67599.0,67594.0,0.14431993]
[1718089040233,0.17215996,67599.0,67594.0,0.14431993]
[1718089040447,0.1,67594.0,67585.0,0.04932824]
[1718089040734,0.17215996,67599.0,67586.0,0.14431993]
[1718089040969,0.07215996,67599.0,67589.0,0.14431993]
[1718089041408,0.07215996,67592.0,67590.0,0.14431993]
[1718089041634,0.1,67591.0,67590.0,0.14431993]
[1718089042953,0.07215996,67599.0,67590.0,0.14431993]
[1718089043174,0.07215996,67599.0,67577.0,0.14960287]
[1718089043175,0.07215996,67600.0,67591.0,0.26171014]
[1718089043400,0.07215996,67600.0,67591.0,0.25875192]
[1718089043614,0.07215996,67593.0,67591.0,0.25875192]
[1718089044711,0.07215996,67596.0,67592.0,0.14431993]
[1718089044928,0.07215996,67596.0,67593.0,0.02587519]
[1718089045193,0.07215996,67596.0,67594.0,0.14431993]
[1718089045412,0.00650649,67595.0,67594.0,0.14431993]
[1718089045641,0.00650649,67595.0,67594.0,0.24431993]
[1718089045877,0.00650649,67595.0,67594.0,0.28278264]
[1718089046098,0.07215996,67614.0,67595.0,0.1556]
[1718089046336,0.07215996,67614.0,67606.0,0.14431993]
[1718089046337,0.07215996,67607.0,67606.0,0.14431993]
[1718089046771,0.07868393,67607.0,67606.0,0.24431993]
[1718089046982,0.07868393,67607.0,67606.0,0.26875192]
[1718089047194,0.07868393,67607.0,67606.0,0.24431993]
[1718089047639,0.1,67601.0,67594.0,0.03846271]
[1718089047864,0.1,67601.0,67593.0,0.04958038]
[1718089047865,0.07215996,67595.0,67593.0,0.04958038]
[1718089048089,0.1,67594.0,67593.0,0.04958038]
[1718089048323,0.1,67590.0,67577.0,0.4771]
[1718089048551,0.07215996,67578.0,67577.0,0.4771]
[1718089048781,0.07215996,67595.0,67577.0,0.4771]
[1718089048782,0.4889,67606.0,67577.0,0.92397]
[1718089049069,0.07215996,67593.0,67591.0,0.14431993]
[1718089049503,0.07215996,67593.0,67592.0,0.14431993]
[1718089051127,0.07215996,67593.0,67579.0,0.04946039]
[1718089051128,0.1,67589.0,67579.0,0.04946039]
[1718089051346,0.07215996,67580.0,67579.0,0.04946039]
[1718089051824,0.07215996,67580.0,67577.0,0.55077]
[1718089052273,0.07215996,67580.0,67577.0,0.07367]
[1718089052518,0.07215996,67583.0,67578.0,0.14431993]
[1718089052739,0.17215996,67593.0,67566.0,0.04901171]
[1718089052740,0.30692171,67582.0,67581.0,0.14431993]
[1718089053004,0.30692171,67582.0,67581.0,0.15875192]
[1718089053236,0.30691466,67582.0,67581.0,0.15875192]
[1718089053717,0.07215996,67593.0,67581.0,0.15875192]
[1718089053948,0.30686864,67592.0,67585.0,0.14431993]
[1718089054230,0.30686864,67591.0,67586.0,0.1]
[1718089054446,0.46029263,67590.0,67587.0,0.14431993]
[1718089054658,0.46029263,67589.0,67588.0,0.24431993]
[1718089054880,0.30686864,67589.0,67588.0,0.27609844]
[1718089055092,0.30686864,67589.0,67588.0,0.53149844]
[1718089055296,0.46029028,67589.0,67588.0,0.53149844]
[1718089055781,0.46026708,67589.0,67588.0,0.53149844]
[1718089056232,0.92051939,67589.0,67588.0,0.53149844]
[1718089056653,0.46026708,67589.0,67588.0,0.53149844]
[1718089057386,0.94244449,67589.0,67588.0,0.53149844]
[1718089057631,0.92046667,67589.0,67588.0,0.53149844]
[1718089058274,0.94244449,67589.0,67588.0,0.53149844]
[1718089058498,0.92046667,67589.0,67588.0,0.53149844]
[1718089058733,1.03043994,67589.0,67588.0,0.68709844]
[1718089058955,0.78573959,67589.0,67588.0,1.25527155]
[1718089059199,0.7355204,67589.0,67588.0,1.25527155]
[1718089059439,0.7281304,67589.0,67588.0,0.91394555]
[1718089059884,0.7281304,67589.0,67588.0,0.90182455]
[1718089060124,0.08215996,67607.0,67588.0,0.83784555]
[1718089060343,0.08215996,67607.0,67590.0,0.1556]
[1718089060344,0.46014904,67606.0,67590.0,0.1556]
[1718089060561,0.46014904,67605.0,67604.0,0.1]
[1718089060855,0.02200574,67616.0,67606.0,0.1556]
[1718089061105,0.45497072,67623.0,67607.0,0.11815083]
[1718089061317,0.07215996,67614.0,67608.0,0.00591465]
[1718089061531,0.02201093,67623.0,67613.0,0.14431993]
[1718089061754,0.02201093,67623.0,67617.0,0.14431993]
[1718089061993,0.02201093,67623.0,67619.0,0.14426538]
[1718089062214,0.02201093,67623.0,67618.0,0.02093718]
[1718089062215,0.02201093,67623.0,67620.0,0.15023348]
[1718089062446,0.02201093,67627.0,67620.0,0.24431993]
[1718089063102,0.02201093,67631.0,67620.0,0.24431993]
[1718089063312,0.000946,67636.0,67620.0,0.24431993]
[1718089063313,0.02201093,67633.0,67627.0,0.14431993]
[1718089063530,0.000946,67636.0,67627.0,0.14431993]
[1718089063531,0.02295693,67636.0,67627.0,0.11443199]
[1718089063751,0.000946,67636.0,67628.0,0.1]
[1718089064722,0.000946,67636.0,67629.0,0.14431993]
[1718089064948,0.000946,67636.0,67630.0,0.1]
[1718089065208,0.000946,67636.0,67631.0,0.14431993]
[1718089065485,0.000946,67636.0,67632.0,0.02587519]
[1718089065696,0.000946,67636.0,67633.0,0.14431993]
[1718089067362,0.08159797,67634.0,67633.0,0.14431993]
[1718089067595,0.00943801,67634.0,67633.0,0.14431993]
[1718089068239,0.00943801,67634.0,67633.0,0.24431993]
[1718089068469,0.00943801,67634.0,67633.0,0.30875944]
[1718089068897,0.00943801,67634.0,67633.0,0.34194463]
[1718089069354,0.00943801,67634.0,67633.0,1.00076492]
[1718089069602,0.00943801,67634.0,67633.0,1.0439773]
[1718089069866,0.00943801,67634.0,67633.0,0.96757973]
[1718089071031,0.00943801,67634.0,67633.0,0.95325944]
[1718089071486,0.000946,67636.0,67635.0,0.5]
[1718089071709,0.000946,67636.0,67635.0,1.08699937]
[1718089071946,0.000946,67636.0,67635.0,1.15979985]
[1718089072163,0.07215996,67654.0,67635.0,1.11658747]
[1718089072449,0.07215996,67645.0,67637.0,0.1556]
[1718089072683,0.07215996,67653.0,67638.0,0.27993318]
[1718089072893,0.009449,67656.0,67652.0,0.14431993]
[1718089073109,0.009449,67656.0,67653.0,0.10133288]
[1718089073331,0.009449,67656.0,67655.0,0.14431993]
[1718089076841,0.109449,67656.0,67655.0,0.14431993]
[1718089076844,0.009449,67656.0,67655.0,0.14431993]
[1718089077038,0.08160896,67656.0,67655.0,0.14431993]
[1718089077594,0.009449,67656.0,67655.0,0.14431993]
[1718089077818,0.009449,67656.0,67655.0,0.17019512]
[1718089078032,0.009449,67656.0,67655.0,0.27019512]
[1718089080320,0.08160896,67656.0,67655.0,0.27019512]
[1718089080828,0.08160896,67656.0,67655.0,0.17019512]
[1718089081264,0.08160896,67656.0,67642.0,0.0494173]
[1718089081265,0.1,67650.0,67642.0,0.0494173]
[1718089081504,0.07215996,67643.0,67642.0,0.0494173]
[1718089081721,0.29215996,67643.0,67633.0,0.01432029]
[1718089081956,0.29215996,67643.0,67640.0,0.14431993]
[1718089082166,0.29215996,67643.0,67629.0,0.04911209]
[1718089082167,0.07215996,67632.0,67629.0,0.04911209]
[1718089082600,0.1,67640.0,67630.0,0.14532663]
[1718089082829,0.07215996,67643.0,67636.0,0.14431993]
[1718089083045,0.07215996,67643.0,67637.0,0.14431993]
[1718089083518,0.07215996,67647.0,67642.0,0.14431993]
[1718089083726,0.08160896,67656.0,67644.0,0.14431993]
[1718089083990,0.08160896,67656.0,67645.0,0.02003122]
[1718089083991,0.15330464,67655.0,67645.0,0.02003122]
[1718089084156,0.08160896,67656.0,67645.0,0.12003122]
[1718089084366,0.08160896,67656.0,67651.0,0.14431993]
[1718089084575,0.08160896,67656.0,67652.0,0.01443199]
[1718089084794,0.009449,67656.0,67655.0,0.14431993]
[1718089085041,0.009449,67656.0,67655.0,0.24431993]
[1718089085705,0.08160896,67656.0,67655.0,0.24431993]
[1718089085930,0.08160896,67656.0,67655.0,0.14431993]
[1718089087310,0.009449,67656.0,67655.0,0.14431993]
[1718089087540,0.009449,67656.0,67655.0,0.24431993]
[1718089087755,0.009449,67656.0,67655.0,0.74431993]
[1718089088216,0.009427,67675.0,67664.0,0.5]
[1718089088424,0.009427,67675.0,67670.0,0.14431993]
[1718089088641,0.22,67674.0,67670.0,0.14431993]
[1718089088898,0.2,67673.0,67670.0,0.14431993]
[1718089089119,0.12,67674.0,67670.0,0.14431993]
[1718089089120,0.1,67674.0,67670.0,0.14431993]
[1718089089342,0.7948,67672.0,67670.0,0.14431993]
[1718089089568,0.4848,67672.0,67670.0,0.14431993]
[1718089090660,0.1,67666.0,67665.0,0.05]
[1718089090887,0.1,67666.0,67657.0,0.04963958]
[1718089090888,0.147787,67665.0,67647.0,0.01432029]
[1718089091110,0.07215996,67648.0,67636.0,0.00086]
[1718089091559,0.491,67658.0,67640.0,0.5]
[1718089091835,0.1,67669.0,67647.0,0.5]
[1718089091836,0.1,67664.0,67647.0,0.5]
[1718089092052,0.04987265,67658.0,67647.0,0.5]
[1718089092274,0.04987265,67658.0,67654.0,0.14431993]
[1718089092689,0.43295979,67668.0,67657.0,0.14431993]
[1718089092690,0.07215996,67668.0,67657.0,0.14431993]
[1718089092945,0.12139524,67668.0,67660.0,0.14431993]
[1718089093124,0.12139524,67668.0,67664.0,0.14431993]
[1718089093125,0.04923528,67668.0,67664.0,0.14431993]
[1718089093550,0.009449,67671.0,67664.0,0.14431993]
[1718089094221,0.07215996,67670.0,67664.0,0.14431993]
[1718089094448,0.009449,67671.0,67669.0,0.14431993]
[1718089094662,0.009449,67671.0,67670.0,0.15875192]
[1718089095092,0.009427,67677.0,67670.0,0.15875192]
[1718089095093,0.009427,67677.0,67671.0,0.1556]
[1718089095314,0.009427,67677.0,67672.0,0.1]
[1718089095787,0.07215996,67674.0,67673.0,0.14431993]
[1718089095995,0.009427,67677.0,67673.0,0.14431993]
[1718089096227,0.07215996,67676.0,67674.0,0.01587519]
[1718089096433,0.07215996,67676.0,67675.0,0.14431993]
[1718089097087,0.08158696,67682.0,67675.0,0.14431993]
[1718089098576,0.00943801,67684.0,67681.0,0.14431993]
[1718089098794,0.00943801,67684.0,67682.0,0.01443199]
[1718089099009,0.00943801,67684.0,67683.0,0.14431993]
[1718089099938,0.00943801,67684.0,67683.0,0.24431993]
[1718089100833,0.00943801,67684.0,67659.0,0.4537]
[1718089100834,0.22,67676.0,67659.0,0.4537]
[1718089101290,0.2557,67683.0,67660.0,0.1705002]
[1718089101291,0.22,67678.0,67660.0,0.1705002]
[1718089101512,0.08158696,67679.0,67674.0,0.14431993]
[1718089101738,0.04934694,67676.0,67674.0,0.14431993]
[1718089101967,0.08158696,67679.0,67674.0,0.14431993]
[1718089103379,0.22,67676.0,67674.0,0.14431993]
[1718089103598,0.08158696,67679.0,67675.0,0.01443199]
[1718089103836,0.22,67670.0,67660.0,0.10769474]
[1718089104058,0.22,67665.0,67661.0,0.14431993]
[1718089104277,0.08158696,67669.0,67661.0,0.14431993]
[1718089105181,0.30158696,67669.0,67661.0,0.14431993]
[1718089105407,0.51174228,67675.0,67662.0,0.14431993]
[1718089105408,0.04954228,67675.0,67662.0,0.14431993]
[1718089105644,0.04954228,67675.0,67657.0,0.01432029]
[1718089105645,0.04954228,67675.0,67668.0,0.14431993]
[1718089105872,0.22,67677.0,67668.0,0.14431993]
[1718089106094,0.22,67669.0,67668.0,0.14431993]
[1718089106540,0.22,67671.0,67668.0,0.14431993]
[1718089106762,0.08158696,67674.0,67668.0,0.14431993]
[1718089106763,0.22,67669.0,67668.0,0.14431993]
[1718089107055,0.08158696,67674.0,67668.0,0.14431993]
[1718089107277,0.22,67670.0,67669.0,0.01443199]
[1718089107501,0.08158696,67674.0,67669.0,0.15875192]
[1718089107726,0.08158696,67674.0,67670.0,0.14431993]
[1718089108595,0.22,67673.0,67670.0,0.14431993]
[1718089108814,0.08158696,67678.0,67671.0,0.16019512]
[1718089109032,0.08158696,67677.0,67671.0,0.14431993]
[1718089109258,0.30158696,67677.0,67671.0,0.14431993]
[1718089109486,0.22,67676.0,67671.0,0.14431993]
[1718089109721,0.30158696,67677.0,67672.0,0.01443199]
[1718089109964,0.30158696,67677.0,67673.0,0.14431993]
[1718089110202,0.22,67676.0,67673.0,0.14431993]
[1718089110664,0.22,67674.0,67673.0,0.14431993]
[1718089110884,0.07215996,67681.0,67657.0,0.01432029]
[1718089110885,0.22,67669.0,67657.0,0.01432029]
[1718089111135,0.08158696,67672.0,67658.0,0.15575196]
[1718089111379,0.22,67669.0,67659.0,0.00295225]
[1718089111612,0.22,67665.0,67660.0,0.14431993]
[1718089111863,0.22,67665.0,67661.0,0.0155752]
[1718089112111,0.58708696,67669.0,67662.0,0.14431993]
[1718089112294,0.22,67667.0,67662.0,0.14431993]
[1718089112554,0.36708696,67669.0,67662.0,0.14431993]
[1718089112555,0.22,67666.0,67662.0,0.14431993]
[1718089112768,0.22,67665.0,67663.0,0.01598951]
[1718089112978,0.22,67665.0,67664.0,0.14431993]
[1718089113193,0.08158696,67672.0,67664.0,0.14431993]
[1718089113424,0.08158696,67672.0,67666.0,0.14431993]
[1718089113648,0.22,67671.0,67666.0,0.14431993]
[1718089113866,0.22,67671.0,67667.0,0.01603094]
[1718089114084,0.22,67671.0,67668.0,0.14431993]
[1718089114298,0.08158696,67672.0,67668.0,0.14431993]
[1718089114516,0.01,67669.0,67668.0,0.14431993]
[1718089114746,0.22,67669.0,67668.0,0.14431993]
[1718089114974,0.08158696,67669.0,67668.0,0.01603509]
[1718089115192,0.08158696,67669.0,67652.0,0.1]
[1718089115411,0.22,67666.0,67652.0,0.1]
[1718089115634,0.04958173,67675.0,67658.0,0.14431993]
[1718089115635,0.77448696,67665.0,67658.0,0.14431993]
[1718089115862,0.77448696,67665.0,67658.0,0.15875192]
[1718089115863,0.22,67662.0,67658.0,0.15875192]
[1718089116090,0.22,67661.0,67658.0,0.15875192]
[1718089116494,0.55448696,67665.0,67658.0,0.15875192]
[1718089116495,0.22,67659.0,67658.0,0.15875192]
[1718089117247,0.08158696,67662.0,67658.0,0.15875192]
[1718089117449,0.26934558,67672.0,67659.0,0.01587519]
[1718089117672,0.22,67669.0,67660.0,0.14431993]
[1718089117899,0.22,67667.0,67660.0,0.14431993]
[1718089118140,0.22,67669.0,67660.0,0.14431993]
[1718089118642,0.22,67657.0,67643.0,0.00990036]
[1718089118859,0.22,67657.0,67645.0,0.06787932]
[1718089119089,0.22,67655.0,67645.0,0.06787932]
[1718089119532,0.22,67649.0,67645.0,0.06787932]
[1718089119973,0.4685,67654.0,67645.0,0.06787932]
[1718089119974,0.22,67646.0,67645.0,0.06787932]
[1718089120195,0.22,67649.0,67636.0,0.00121381]
[1718089120418,0.22,67648.0,67637.0,0.14431993]
[1718089120640,0.22,67643.0,67638.0,0.01451799]
[1718089120862,0.08158696,67651.0,67639.0,0.14431993]
[1718089121092,0.22,67649.0,67639.0,0.14431993]
[1718089121313,0.22,67646.0,67639.0,0.06943246]
[1718089121524,0.22,67645.0,67639.0,0.06943246]
[1718089121738,0.2,67643.0,67639.0,0.06943246]
[1718089121961,0.22,67640.0,67639.0,0.06943246]
[1718089122181,0.535,67640.0,67627.0,0.4583]
[1718089122497,0.535,67640.0,67622.0,0.00035381]
[1718089122498,0.535,67628.0,67622.0,0.00035381]
[1718089122923,0.535,67628.0,67620.0,0.4789]
[1718089124202,0.535,67628.0,67621.0,0.08903748]
[1718089125055,0.049298,67634.0,67627.0,0.14431993]
[1718089125270,0.049298,67634.0,67623.0,0.1556]
[1718089125271,0.049298,67634.0,67630.0,0.14431993]
[1718089125486,0.08158696,67645.0,67631.0,0.01443199]
[1718089125689,0.08158696,67644.0,67632.0,0.14431993]
[1718089125903,0.2675,67633.0,67632.0,0.14431993]
[1718089127392,0.535,67633.0,67623.0,0.00035381]
[1718089127618,0.22,67640.0,67624.0,0.24224531]
[1718089127816,0.1,67643.0,67624.0,0.24224531]
[1718089127817,0.2675,67625.0,67624.0,0.24224531]
[1718089128459,0.2675,67634.0,67624.0,0.24224531]
[1718089128693,0.2675,67634.0,67625.0,0.14431993]
[1718089128902,0.2675,67626.0,67625.0,0.14431993]
[1718089129113,0.2675,67626.0,67625.0,0.1665413]
[1718089130661,0.2675,67626.0,67609.0,0.00035381]
[1718089130885,0.2675,67618.0,67610.0,0.14431993]
[1718089131098,0.2675,67618.0,67611.0,0.2809]
[1718089131344,0.2675,67618.0,67612.0,0.14431993]
[1718089131562,0.2675,67618.0,67615.0,0.14431993]
[1718089131990,0.023,67617.0,67615.0,0.14431993]
[1718089132613,0.2679,67616.0,67615.0,0.14431993]
[1718089132820,0.2909,67616.0,67609.0,0.00035381]
[1718089133029,0.2909,67616.0,67609.0,0.14431993]
[1718089133030,0.123,67615.0,67609.0,0.14431993]
[1718089133262,0.123,67615.0,67610.0,0.01443199]
[1718089133942,0.123,67615.0,67610.0,0.15875192]
[1718089134134,0.123,67615.0,67611.0,0.14431993]
[1718089137749,0.123,67615.0,67610.0,0.01443199]
[1718089137966,0.22,67613.0,67600.0,0.00857]
[1718089138171,0.32,67612.0,67601.0,0.17326693]
[1718089138372,0.2679,67602.0,67601.0,0.17326693]
[1718089138579,0.3679,67602.0,67601.0,0.17326693]
[1718089138786,0.3909,67602.0,67601.0,0.17326693]
[1718089141327,0.3909,67602.0,67600.0,0.00857]
[1718089141549,0.123,67601.0,67600.0,0.00857]
[1718089141778,0.123,67601.0,67600.0,0.15288993]
[1718089142247,0.3909,67601.0,67600.0,0.15288993]
[1718089142470,0.123,67601.0,67600.0,0.15288993]
[1718089142705,0.023,67601.0,67600.0,0.16817892]
[1718089142947,0.123,67601.0,67600.0,0.16817892]
[1718089143163,0.1,67601.0,67600.0,0.16817892]
[1718089143386,0.1,67601.0,67600.0,0.66087892]
[1718089143813,0.04919678,67615.0,67600.0,0.66087892]
[1718089144032,0.04919678,67615.0,67601.0,0.32133765]
[1718089144470,0.04919678,67615.0,67603.0,0.64431993]
[1718089144700,0.04919678,67615.0,67604.0,0.14431993]
[1718089144920,0.04919678,67615.0,67604.0,0.98897393]
[1718089145150,0.14919678,67615.0,67604.0,0.98897393]
[1718089145440,0.023,67614.0,67605.0,0.01528899]
[1718089145676,0.023,67614.0,67607.0,0.40841993]
[1718089145924,0.04919678,67615.0,67607.0,0.40841993]
[1718089145925,0.04919678,67615.0,67610.0,0.14431993]
[1718089146155,0.34948696,67632.0,67610.0,0.14431993]
[1718089146389,0.34948696,67632.0,67611.0,0.14431993]
[1718089146390,0.39853395,67632.0,67611.0,0.14431993]
[1718089146604,0.39853395,67632.0,67612.0,0.04087737]
[1718089146847,0.39853395,67632.0,67613.0,0.14431993]
[1718089147067,0.1,67631.0,67613.0,0.14431993]
[1718089147319,0.023,67630.0,67613.0,0.14431993]
[1718089147559,0.023,67630.0,67615.0,0.4782]
[1718089147788,0.023,67630.0,67616.0,0.14663352]
[1718089148433,0.023,67630.0,67614.0,0.01851973]
[1718089148434,0.44945496,67628.0,67614.0,0.01851973]
[1718089148674,0.44945496,67628.0,67615.0,0.14431993]
[1718089148675,0.2679,67617.0,67615.0,0.14431993]
[1718089148927,0.1,67616.0,67607.0,0.00035381]
[1718089149168,0.123,67616.0,67608.0,0.14431993]
[1718089149418,0.123,67616.0,67609.0,0.01599627]
[1718089149643,0.123,67616.0,67610.0,0.14431993]
[1718089150091,0.023,67616.0,67610.0,0.14431993]
[1718089150323,0.04911114,67622.0,67610.0,0.14431993]
[1718089150324,0.1,67615.0,67610.0,0.14431993]
[1718089150576,0.023,67614.0,67611.0,0.201663]
[1718089150802,0.023,67614.0,67612.0,0.1789536]
[1718089151031,0.023,67614.0,67612.0,0.6416576]
[1718089151241,0.023,67614.0,67612.0,0.1789536]
[1718089151453,0.023,67614.0,67612.0,0.14431993]
[1718089151869,0.023,67620.0,67613.0,0.11940788]
[1718089152076,0.02169,67621.0,67614.0,0.26372781]
[1718089152295,0.02169,67621.0,67615.0,0.11940788]
[1718089152525,0.02169,67621.0,67616.0,0.26372781]
[1718089152744,0.02169,67621.0,67617.0,0.17410066]
[1718089153027,0.02169,67621.0,67618.0,0.14431993]
[1718089153266,0.02169,67621.0,67619.0,0.11940788]
[1718089153509,0.02169,67621.0,67617.0,0.05469278]
[1718089153510,0.02169,67621.0,67620.0,0.26372781]
[1718089154612,0.28959,67621.0,67620.0,0.26372781]
[1718089154816,0.38959,67621.0,67620.0,0.29556987]
[1718089155895,0.0499385,67631.0,67620.0,0.29556987]
[1718089156117,0.0499385,67631.0,67624.0,0.14431993]
[1718089156336,0.2679,67633.0,67624.0,0.14431993]
[1718089156337,0.2679,67633.0,67625.0,0.5]
[1718089156552,0.2679,67633.0,67626.0,0.22549843]
[1718089156809,0.2679,67633.0,67627.0,0.17934045]
[1718089157019,0.4743,67646.0,67628.0,0.32366038]
[1718089157224,0.04910825,67640.0,67629.0,0.11648487]
[1718089157439,0.04910825,67640.0,67630.0,0.33894937]
[1718089157652,0.023,67639.0,67631.0,0.11648487]
[1718089157872,0.023,67639.0,67632.0,0.2608048]
[1718089158098,0.023,67639.0,67633.0,0.11648487]
[1718089158334,0.023,67639.0,67634.0,0.30213418]
[1718089158550,0.2142,67635.0,67634.0,0.18564931]
[1718089158769,0.3372,67635.0,67634.0,0.26352488]
[1718089158995,0.123,67635.0,67634.0,0.26352488]
[1718089159213,0.3907,67635.0,67634.0,0.40010788]
[1718089159685,0.3907,67635.0,67634.0,0.26412437]
[1718089159917,0.123,67635.0,67634.0,0.46069237]
[1718089160135,0.123,67635.0,67634.0,0.44919051]
[1718089161090,0.123,67635.0,67634.0,0.79182594]
[1718089161316,0.023,67635.0,67634.0,0.79182594]
[1718089163424,0.023,67635.0,67634.0,1.25162594]
[1718089164497,0.023,67635.0,67634.0,1.11415794]
[1718089164882,0.0066,67635.0,67634.0,2.10733598]
[1718089165093,0.04936389,67648.0,67641.0,0.5]
[1718089165313,0.1,67647.0,67642.0,0.3658757]
[1718089165536,0.1,67647.0,67643.0,0.11980444]
[1718089165750,0.1,67647.0,67644.0,0.26412437]
[1718089165968,0.1,67647.0,67644.0,0.88730793]
[1718089166182,0.1,67647.0,67645.0,0.11696315]
[1718089166389,0.0493313,67656.0,67646.0,0.16264285]
[1718089166615,0.0493313,67656.0,67647.0,0.11696315]
[1718089166847,0.0493313,67656.0,67648.0,0.14431993]
[1718089167067,0.023,67655.0,67649.0,0.11696315]
[1718089167300,0.023,67655.0,67650.0,0.26128308]
[1718089167537,0.023,67655.0,67651.0,0.13225214]
[1718089167765,0.023,67655.0,67652.0,0.26128308]
[1718089167984,0.1,67657.0,67653.0,0.11696315]
[1718089167985,0.023,67656.0,67653.0,0.11696315]
[1718089168201,0.023,67656.0,67654.0,0.26128308]
[1718089168690,0.023,67656.0,67655.0,0.11696315]
[1718089168904,0.023,67656.0,67655.0,0.28894029]
[1718089171733,0.1,67657.0,67655.0,0.28894029]
[1718089171967,0.1,67657.0,67656.0,0.26128308]
[1718089172222,0.14908185,67665.0,67656.0,0.75687289]
[1718089172444,0.14908185,67665.0,67657.0,0.17584078]
[1718089172680,0.14908185,67665.0,67658.0,0.26128308]
[1718089172913,0.14908185,67665.0,67659.0,0.11696315]
[1718089173145,0.14908185,67665.0,67660.0,0.26128308]
[1718089173385,0.1,67665.0,67661.0,0.11696315]
[1718089173624,0.023,67664.0,67662.0,0.279606]
[1718089174083,0.023,67664.0,67663.0,0.11696315]
[1718089174320,0.02,67661.0,67656.0,0.00035381]
[1718089174564,0.2,67662.0,67656.0,0.00035381]
[1718089174565,0.2677,67657.0,67656.0,0.00035381]
[1718089174816,0.3677,67657.0,67656.0,0.00035381]